bitfinex/quotes_SOLUSD_20250918
["timestamp","ask_amount","ask_price","bid_price","bid_amount"]
[1758170052897,0.06,246.13,246.11,13.87991715]
[1758170053093,0.06,246.13,246.11,45.81991715]
[1758170053285,0.06,246.13,246.11,47.44543783]
[1758170053483,0.06,246.13,246.11,51.50866159]
[1758170053893,0.06,246.13,246.11,77.50866159]
[1758170054924,0.72,246.12,246.11,26.0]
[1758170055105,4.78309065,246.12,246.06,0.03]
[1758170055307,4.78309065,246.12,246.08,26.0]
[1758170055505,0.66,246.11,246.09,31.94]
[1758170055703,0.66,246.1,246.09,31.94]
[1758170055908,4.12309065,246.12,246.09,31.94]
[1758170056112,0.66,246.1,246.09,31.94]
[1758170056612,0.66,246.1,246.09,31.92]
[1758170056817,4.72338886,246.1,246.09,31.92]
[1758170057517,4.72338886,246.1,246.06,12.4733315]
[1758170057702,0.66,246.09,246.07,31.92]
[1758170058016,0.66,246.08,246.07,31.92]
[1758170058812,4.06388426,246.07,246.06,0.03]
[1758170059004,4.06388426,246.07,246.06,31.93]
[1758170059317,4.72388426,246.07,246.06,31.93]
[1758170059817,4.72388426,246.07,246.06,0.03]
[1758170064005,4.78388426,246.07,246.06,0.03]
[1758170069410,6.0516495,246.07,246.06,0.03]
[1758170076433,30.78388426,246.07,246.06,0.03]
[1758170076614,32.0516495,246.07,246.06,0.03]
[1758170078037,30.78388426,246.07,246.06,0.03]
[1758170078239,32.0516495,246.07,246.06,0.03]
[1758170079109,30.78388426,246.07,246.06,0.03]
[1758170079309,4.12388426,246.07,246.06,0.03]
[1758170080822,5.3916495,246.07,246.06,0.03]
[1758170081416,6.1016495,246.07,246.06,0.03]
[1758170084934,4.83388426,246.07,246.06,0.03]
[1758170085438,6.1016495,246.07,246.06,0.03]
[1758170090739,4.83388426,246.07,246.06,0.03]
[1758170090937,6.1016495,246.07,246.06,0.03]
[1758170092223,4.12388426,246.07,246.06,0.03]
[1758170093927,4.12388426,246.07,246.06,0.74]
[1758170095084,6.1016495,246.07,246.06,0.03]
[1758170100060,4.83388426,246.07,246.06,0.03]
[1758170100263,6.1016495,246.07,246.06,0.03]
[1758170100880,5.3916495,246.07,246.06,0.03]
[1758170101187,4.12388426,246.07,246.06,0.03]
[1758170107787,4.12388426,246.07,246.06,0.75]
[1758170108193,0.06,246.07,246.06,0.75]
[1758170110164,0.06,246.07,246.06,0.03]
[1758170110367,0.06,246.07,246.06,0.75]
[1758170111369,0.06,246.07,246.06,0.03]
[1758170111568,0.72,246.07,246.06,0.03]
[1758170111778,0.06,246.07,246.06,0.03]
[1758170113394,0.72,246.07,246.06,0.03]
[1758170115883,28.70274149,246.07,246.06,0.03]
[1758170119698,60.36274149,246.07,246.06,0.03]
[1758170124200,28.70274149,246.07,246.06,0.03]
[1758170124398,60.36274149,246.07,246.06,0.03]
[1758170125689,26.72,246.07,246.06,0.03]
[1758170125887,60.36274149,246.07,246.06,0.03]
[1758170126483,28.70274149,246.07,246.06,0.03]
[1758170126708,60.36274149,246.07,246.06,0.03]
[1758170130204,28.70274149,246.07,246.06,0.03]
[1758170130414,60.36274149,246.07,246.06,0.03]
[1758170132313,28.70274149,246.07,246.06,0.03]
[1758170132627,0.06,246.07,246.06,0.03]
[1758170133190,0.06,246.07,246.06,0.7]
[1758170134302,0.06,246.07,246.06,0.03]
[1758170139018,0.06,246.07,246.06,0.7]
[1758170145034,0.06,246.07,246.06,0.03]
[1758170146408,0.06,246.07,246.06,0.7]
[1758170150617,0.06,246.07,246.06,0.03]
[1758170151427,0.74,246.07,246.06,0.03]
[1758170151825,0.06,246.07,246.06,0.03]
[1758170152823,0.74,246.07,246.06,0.03]
[1758170156218,0.06,246.1,246.08,2.06096547]
[1758170157135,0.74,246.1,246.08,2.06096547]
[1758170157349,2.66274149,246.09,246.08,2.06096547]
[1758170159046,4.12344042,246.1,246.08,2.06096547]
[1758170159442,0.69,246.09,246.08,2.06096547]
[1758170160327,4.12344042,246.1,246.08,2.06096547]
[1758170162044,0.69,246.09,246.06,0.03]
[1758170162542,6.10618191,246.1,246.06,0.03]
[1758170162543,1.98274149,246.1,246.06,0.03]
[1758170163843,16.20465407,246.1,246.06,0.03]
[1758170164026,6.04618191,246.1,246.06,0.03]
[1758170164228,4.06344042,246.1,246.07,0.67]
[1758170164549,4.06344042,246.1,246.08,0.67]
[1758170166554,4.06344042,246.1,246.06,0.7]
[1758170166751,4.06344042,246.1,246.07,0.67]
[1758170168048,4.06344042,246.1,246.08,0.67]
[1758170168246,0.06,246.11,246.06,0.03]
[1758170168452,0.06,246.11,246.07,0.67]
[1758170168630,0.06,246.11,246.07,32.31]
[1758170168831,0.06,246.11,246.08,0.67]
[1758170169044,0.06,246.1,246.08,0.67]
[1758170169353,0.06,246.1,246.07,31.64]
[1758170169354,0.06,246.1,246.09,0.67]
[1758170170345,0.06,246.1,246.07,31.64]
[1758170170549,0.06,246.1,246.08,0.67]
[1758170173147,4.12349958,246.1,246.08,0.67]
[1758170174538,6.78624107,246.1,246.06,0.03]
[1758170174738,4.80349958,246.1,246.06,32.32]
[1758170175141,4.80349958,246.1,246.06,31.65]
[1758170175354,4.12349958,246.1,246.07,0.67]
[1758170175842,16.23000881,246.1,246.06,0.03]
[1758170176042,1.26803707,246.09,246.06,0.03]
[1758170176243,16.23000881,246.1,246.06,0.7]
[1758170176857,0.68,246.09,246.06,0.03]
[1758170177545,4.06388426,246.07,246.06,0.03]
[1758170179360,4.74388426,246.07,246.06,0.03]
[1758170181561,4.06388426,246.07,246.06,0.03]
[1758170184661,6.01192133,246.07,246.06,0.03]
[1758170188173,4.74388426,246.07,246.06,0.03]
[1758170188470,6.01192133,246.07,246.06,0.03]
[1758170198082,4.74388426,246.07,246.06,0.03]
[1758170198286,5.33192133,246.07,246.06,0.03]
[1758170198774,6.02192133,246.07,246.06,0.03]
[1758170205180,5.33192133,246.07,246.06,0.03]
[1758170205493,6.02192133,246.07,246.06,0.03]
[1758170206461,37.62192133,246.07,246.06,0.03]
[1758170206980,41.96365394,246.07,246.06,0.03]
[1758170207479,10.36365394,246.07,246.06,0.03]
[1758170207699,41.96365394,246.07,246.06,0.03]
[1758170207859,10.36365394,246.07,246.06,0.03]
[1758170208063,5.33192133,246.07,246.06,0.03]
[1758170208564,6.02192133,246.07,246.06,0.03]
[1758170210679,7.64876424,246.07,246.06,0.03]
[1758170215684,39.24876424,246.07,246.06,0.03]
[1758170217283,7.64876424,246.07,246.06,0.03]
[1758170217590,39.24876424,246.07,246.06,0.03]
[1758170218183,41.96415619,246.07,246.06,0.03]
[1758170219488,10.36415619,246.07,246.06,0.03]
[1758170219694,39.24876424,246.07,246.06,0.03]
[1758170219988,41.96415619,246.07,246.06,0.03]
[1758170220288,41.27415619,246.07,246.06,0.03]
[1758170221493,41.99415619,246.07,246.06,0.03]
[1758170221877,41.27415619,246.07,246.06,0.03]
[1758170222567,9.67415619,246.07,246.06,0.03]
[1758170222767,38.55876424,246.07,246.06,0.03]
[1758170222975,41.27415619,246.07,246.06,0.03]
[1758170223189,41.25415619,246.07,246.06,0.03]
[1758170223398,36.91192133,246.07,246.06,0.03]
[1758170225388,39.62885079,246.07,246.06,0.03]
[1758170225589,36.91192133,246.07,246.06,0.03]
[1758170226884,30.06388426,246.07,246.06,0.75]
[1758170227202,31.33192133,246.07,246.06,0.03]
[1758170228302,31.33192133,246.07,246.06,0.75]
[1758170228603,34.04925999,246.07,246.06,0.75]
[1758170228800,32.78122292,246.07,246.06,0.75]
[1758170229005,34.04925999,246.07,246.06,0.75]
[1758170229204,34.04925999,246.07,246.06,0.03]
[1758170229902,44.90897064,246.07,246.03,0.03]
[1758170230075,26.0,246.04,246.03,0.03]
[1758170230282,60.29733866,246.04,246.03,0.03]
[1758170230495,60.99733866,246.04,246.03,0.03]
[1758170230695,77.26502552,246.04,246.03,0.03]
[1758170233005,66.3297555,246.04,246.03,0.03]
[1758170235806,67.04497372,246.04,246.03,0.03]
[1758170237303,64.32763506,246.04,246.03,0.03]
[1758170239022,79.18435051,246.04,245.99,74.08873604]
[1758170239186,3.96651058,246.0,245.99,74.08873604]
[1758170239388,35.54651058,246.0,245.99,74.08873604]
[1758170239606,36.24651058,246.0,245.99,74.08873604]
[1758170239806,35.54651058,246.0,245.99,74.08873604]
[1758170240324,36.24651058,246.0,245.99,74.08873604]
[1758170240608,40.31155123,246.0,245.99,74.08873604]
[1758170244201,39.61155123,246.0,245.99,74.08873604]
[1758170244412,40.31155123,246.0,245.99,74.08873604]
[1758170246220,40.31155123,246.0,245.99,53.02450366]
[1758170246407,40.31155123,246.0,245.98,0.03]
[1758170246604,26.0,245.97,245.95,0.03]
[1758170246807,27.98325529,245.97,245.95,0.03]
[1758170247210,28.68325529,245.97,245.95,0.03]
[1758170248115,32.74879173,245.97,245.95,0.03]
[1758170248794,32.04879173,245.97,245.95,0.03]
[1758170249414,32.04879173,245.97,245.96,0.72]
[1758170249921,32.04879173,245.97,245.96,0.03]
[1758170250725,6.04879173,245.97,245.96,0.03]
[1758170250922,4.06553644,245.97,245.96,0.72]
[1758170251614,6.04879173,245.97,245.96,0.72]
[1758170251816,4.06553644,245.97,245.96,0.72]
[1758170252239,6.04879173,245.97,245.96,0.72]
[1758170255119,6.04879173,245.97,245.96,0.03]
[1758170255336,6.71879173,245.97,245.96,0.03]
[1758170257234,6.04879173,245.97,245.96,0.03]
[1758170258326,6.71879173,245.97,245.96,0.03]
[1758170258727,6.04879173,245.97,245.96,0.03]
[1758170259736,6.71879173,245.97,245.96,0.03]
[1758170261228,6.04879173,245.97,245.96,0.03]
[1758170261924,6.71879173,245.97,245.96,0.03]
[1758170262121,6.04879173,245.97,245.96,0.03]
[1758170262737,6.71879173,245.97,245.96,0.03]
[1758170263944,38.27879173,245.97,245.96,0.03]
[1758170264448,37.60879173,245.97,245.96,0.03]
[1758170264626,38.27879173,245.97,245.96,0.03]
[1758170266543,6.71879173,245.97,245.96,0.03]
[1758170266844,38.27879173,245.97,245.96,0.03]
[1758170269246,36.29553644,245.97,245.96,0.03]
[1758170269421,38.27879173,245.97,245.96,0.03]
[1758170272852,38.33879173,245.97,245.96,0.03]
[1758170273745,37.66879173,245.97,245.96,0.03]
[1758170274165,38.33879173,245.97,245.96,0.03]
[1758170277545,41.05121526,245.97,245.96,0.03]
[1758170279347,40.38121526,245.97,245.96,0.03]
[1758170280249,41.05121526,245.97,245.96,0.03]
[1758170281760,40.38121526,245.97,245.96,0.03]
[1758170282140,41.05121526,245.97,245.96,0.03]
[1758170282665,40.38121526,245.97,245.96,0.03]
[1758170283335,41.08121526,245.97,245.96,0.03]
[1758170290284,41.08121526,245.97,245.95,1e-08]
[1758170290575,4.69567882,245.96,245.95,1e-08]
[1758170290951,5.39567882,245.96,245.95,1e-08]
[1758170291253,3.41242353,245.96,245.95,1e-08]
[1758170291453,5.39567882,245.96,245.95,1e-08]
[1758170292377,26.0,245.94,245.92,0.03]
[1758170292557,26.0,245.88,245.77,32.75421732]
[1758170292758,1.98325529,245.79,245.77,0.87]
[1758170292960,33.52325529,245.79,245.77,0.2]
[1758170293161,1.98325529,245.78,245.77,1e-08]
[1758170293396,2.68325529,245.78,245.74,0.2]
[1758170293687,1.98325529,245.75,245.74,0.2]
[1758170293884,33.50325529,245.75,245.74,0.2]
[1758170294381,1.62876397,245.75,245.74,0.87]
[1758170294560,33.16876397,245.75,245.74,0.87]
[1758170294884,35.15201926,245.75,245.74,0.87]
[1758170295383,35.15201926,245.75,245.74,0.2]
[1758170296284,39.22119525,245.75,245.74,0.2]
[1758170296456,37.23793996,245.75,245.74,0.2]
[1758170296655,39.22119525,245.75,245.74,0.2]
[1758170297071,7.68119525,245.75,245.74,0.2]
[1758170297259,39.22119525,245.75,245.74,0.2]
[1758170297460,39.92119525,245.75,245.74,0.2]
[1758170297886,39.21017706,245.75,245.74,0.2]
[1758170298083,49.38311703,245.75,245.63,0.67]
[1758170298276,1.2722371,245.69,245.64,0.67]
[1758170298477,1.2722371,245.69,245.65,0.67]
[1758170298680,1.2722371,245.69,245.63,0.67]
[1758170299002,32.8122371,245.7,245.63,0.67]
[1758170300674,6.04240682,245.69,245.63,0.67]
[1758170300970,5.34240682,245.69,245.63,0.67]
[1758170301175,4.07016972,245.69,245.63,0.67]
[1758170301372,1.629162,245.68,245.63,0.67]
[1758170301769,1.629162,245.68,245.64,0.67]
[1758170302085,1.629162,245.68,245.62,0.67]
[1758170302267,2.329162,245.68,245.62,0.67]
[1758170302787,4.07050107,245.67,245.62,0.67]
[1758170303080,1.629162,245.68,245.63,0.67]
[1758170303286,4.07027123,245.69,245.63,0.67]
[1758170303460,4.07050107,245.66,245.63,0.67]
[1758170303666,31.54,245.7,245.63,0.67]
[1758170304070,49.80054396,245.7,245.61,0.77]
[1758170304387,37.5823266,245.7,245.61,0.77]
[1758170305179,13.49045447,245.69,245.61,0.77]
[1758170306089,12.21821737,245.69,245.61,0.77]
[1758170306393,13.49045447,245.69,245.61,0.77]
[1758170306694,4.07033539,245.68,245.61,0.77]
[1758170308094,0.7,245.67,245.61,0.77]
[1758170308993,0.7,245.67,245.61,0.1]
[1758170309798,0.7,245.67,245.61,4.84142691]
[1758170310091,0.7,245.67,245.61,4.87142691]
[1758170310496,12.21821736,245.69,245.61,4.20142691]
[1758170310808,12.21821736,245.69,245.62,0.67]
[1758170311097,12.91821736,245.69,245.62,0.67]
[1758170311273,12.91821736,245.69,245.62,4.74124089]
[1758170311473,12.21821736,245.69,245.62,4.07124089]
[1758170311772,12.21821736,245.69,245.63,14.54991715]
[1758170311979,0.06,245.75,245.64,0.67]
[1758170311980,0.7,245.74,245.64,0.67]
[1758170312196,0.7,245.74,245.65,0.28432314]
[1758170312382,0.7,245.74,245.66,0.67]
[1758170313170,0.7,245.74,245.67,4.07050107]
[1758170313373,1.9222371,245.73,245.65,0.28432314]
[1758170313899,0.65,245.73,245.65,0.28432314]
[1758170314282,4.77924792,245.75,245.66,4.74055158]
[1758170314488,4.77924792,245.75,245.67,0.67]
[1758170314673,0.65,245.74,245.67,0.67]
[1758170315275,0.06,245.75,245.68,0.67]
[1758170315699,0.06,245.75,245.69,0.28432314]
[1758170316410,0.06,245.75,245.7,4.07000407]
[1758170316571,0.65,245.74,245.69,0.28432314]
[1758170316776,0.65,245.73,245.69,0.28432314]
[1758170317681,4.77926542,245.75,245.69,0.28432314]
[1758170319772,0.71,245.75,245.69,0.28432314]
[1758170319977,0.71,245.75,245.69,4.35445855]
[1758170320176,0.06,245.75,245.7,0.67]
[1758170320903,0.06,245.75,245.69,0.95432314]
[1758170321693,0.71,245.75,245.69,5.02444923]
[1758170322096,0.71,245.75,245.69,4.35444923]
[1758170322893,0.06,245.75,245.69,5.02444923]
[1758170323198,0.06,245.75,245.69,36.56444923]
[1758170323390,0.71,245.75,245.69,36.56444923]
[1758170323797,0.71,245.75,245.69,40.63332673]
[1758170325406,0.06,245.75,245.7,0.67]
[1758170325591,0.06,245.75,245.72,0.28432314]
[1758170326115,0.06,245.75,245.73,0.67]
[1758170326288,0.06,245.75,245.73,2.29829985]
[1758170327300,0.06,245.75,245.74,4.06934158]
[1758170327599,0.06,245.75,245.74,4.73934158]
[1758170327988,0.06,245.75,245.74,36.27934158]
[1758170329107,0.06,245.75,245.74,35.60934158]
[1758170330407,0.06,245.75,245.74,35.89366472]
[1758170330715,0.06,245.75,245.74,38.19189829]
[1758170331210,0.06,245.75,245.74,37.52189829]
[1758170331520,0.06,245.75,245.74,51.7874923]
[1758170332510,0.06,245.75,245.74,5.98189829]
[1758170332681,0.06,245.75,245.74,31.98189829]
[1758170332888,0.06,245.75,245.74,63.52189829]
[1758170335002,0.06,245.75,245.74,64.19189829]
[1758170335402,0.06,245.75,245.74,63.52189829]
[1758170340004,0.06,245.75,245.74,57.82432314]
[1758170340197,0.75,245.75,245.74,57.82432314]
[1758170340714,0.06,245.75,245.74,57.82432314]
[1758170341095,0.75,245.75,245.74,57.80432314]
[1758170342018,0.75,245.75,245.71,4.0697082]
[1758170342323,0.69,245.74,245.72,31.80432314]
[1758170343015,0.72,245.73,245.71,0.28432314]
[1758170343222,0.72,245.73,245.72,31.52]
[1758170343403,0.06,245.75,245.72,31.52]
[1758170343604,0.72,245.74,245.72,31.52]
[1758170343806,0.72,245.73,245.71,0.28432314]
[1758170344126,0.72,245.72,245.71,31.80432314]
[1758170344594,0.72,245.74,245.71,0.28432314]
[1758170344794,0.72,245.73,245.71,31.80432314]
[1758170345394,0.72,245.72,245.71,31.80432314]
[1758170345597,0.72,245.74,245.71,31.80432314]
[1758170345801,0.72,245.73,245.71,31.80432314]
[1758170346299,0.06,245.75,245.71,31.80432314]
[1758170346522,0.72,245.72,245.71,31.80432314]
[1758170348121,0.78,245.75,245.71,31.80432314]
[1758170348330,0.72,245.74,245.71,31.80432314]
[1758170348628,0.06,245.75,245.7,0.28432314]
[1758170348814,0.72,245.73,245.7,31.80432314]
[1758170349010,0.72,245.72,245.7,31.80432314]
[1758170349226,0.06,245.75,245.7,31.80432314]
[1758170349227,0.72,245.71,245.7,31.80432314]
[1758170349801,0.72,245.72,245.7,31.80432314]
[1758170350005,4.12922065,245.75,245.7,31.80432314]
[1758170350360,0.72,245.72,245.7,31.80432314]
[1758170350900,0.72,245.71,245.7,31.80432314]
[1758170352128,0.72,245.73,245.7,31.80432314]
[1758170352306,0.72,245.72,245.7,31.80432314]
[1758170353429,4.06942941,245.74,245.7,31.80432314]
[1758170353625,0.72,245.74,245.7,31.80432314]
[1758170353817,0.72,245.73,245.7,31.80432314]
[1758170354010,0.72,245.72,245.7,31.52]
[1758170354238,0.72,245.71,245.7,31.52]
[1758170355327,4.78963057,245.73,245.7,31.52]
[1758170356646,0.72,245.72,245.7,31.52]
[1758170357150,4.06963057,245.73,245.7,31.52]
[1758170357448,4.78963057,245.73,245.7,31.52]
[1758170357745,0.72,245.72,245.7,31.52]
[1758170360453,4.06963057,245.73,245.7,31.52]
[1758170360750,4.78963057,245.73,245.7,31.52]
[1758170360948,0.72,245.73,245.7,31.52]
[1758170362049,0.06,245.75,245.7,31.52]
[1758170362345,0.72,245.74,245.7,31.52]
[1758170362648,4.12922522,245.75,245.7,31.52]
[1758170362850,0.72,245.73,245.7,31.52]
[1758170369251,0.72,245.72,245.7,31.52]
[1758170369450,0.72,245.71,245.7,31.52]
[1758170370456,0.72,245.73,245.7,31.52]
[1758170371241,4.06948195,245.74,245.7,31.52]
[1758170371447,0.72,245.73,245.7,31.52]
[1758170371659,0.72,245.74,245.7,31.52]
[1758170371860,0.72,245.73,245.69,31.55]
[1758170372442,0.72,245.72,245.69,31.55]
[1758170373542,0.72,245.72,245.69,0.03]
[1758170373744,0.71,245.71,245.69,0.03]
[1758170375169,4.7798468,245.71,245.69,0.03]
[1758170376361,0.71,245.71,245.69,0.03]
[1758170378085,4.06972646,245.72,245.69,0.03]
[1758170378379,0.71,245.7,245.69,0.03]
[1758170382582,2.69687152,245.7,245.69,0.03]
[1758170383873,0.71,245.7,245.69,0.03]
[1758170384065,2.69687152,245.7,245.69,0.03]
[1758170386962,0.71,245.7,245.69,0.03]
[1758170387369,2.69687152,245.7,245.69,0.03]
[1758170388384,0.71,245.7,245.69,0.03]
[1758170390883,2.69687152,245.7,245.69,0.03]
[1758170391661,0.71,245.7,245.69,0.03]
[1758170391876,2.69687152,245.7,245.69,0.03]
[1758170392796,0.71,245.7,245.69,0.03]
[1758170393098,2.69687152,245.7,245.69,0.03]
[1758170394492,0.71,245.7,245.69,0.03]
[1758170394683,2.69687152,245.7,245.69,0.03]
[1758170396462,0.71,245.7,245.69,0.03]
[1758170396666,2.69687152,245.7,245.69,0.03]
[1758170401002,4.06955461,245.73,245.69,0.69]
[1758170401293,0.68,245.73,245.69,0.03]
[1758170401469,2.66687152,245.72,245.69,0.03]
[1758170401808,0.68,245.71,245.69,0.03]
[1758170402371,2.66687152,245.71,245.69,0.03]
[1758170402587,1.98687152,245.71,245.69,0.03]
[1758170402786,0.68,245.7,245.69,0.03]
[1758170403090,6.05678223,245.71,245.69,0.03]
[1758170403469,6.72678223,245.71,245.69,0.03]
[1758170403897,2.65687152,245.71,245.69,0.03]
[1758170404093,6.72672981,245.71,245.69,0.03]
[1758170404311,0.67,245.7,245.69,0.03]
[1758170405277,6.05672981,245.71,245.69,0.03]
[1758170405472,1.98687152,245.71,245.69,0.03]
[1758170405677,2.65687152,245.71,245.69,0.03]
[1758170406279,0.67,245.7,245.69,0.03]
[1758170407498,4.74000407,245.7,245.69,0.03]
[1758170407899,4.07000407,245.7,245.69,0.03]
[1758170408985,6.72664386,245.72,245.69,0.03]
[1758170409501,0.67,245.71,245.69,0.03]
[1758170410782,4.73998925,245.71,245.69,0.03]
[1758170411107,4.06998925,245.71,245.69,0.03]
[1758170411290,0.67,245.7,245.69,0.03]
[1758170411798,4.73998925,245.71,245.69,0.03]
[1758170411976,0.06,245.74,245.69,0.71]
[1758170412177,0.06,245.74,245.69,0.99432314]
[1758170412700,0.06,245.74,245.7,0.68]
[1758170413506,0.06,245.74,245.71,0.68]
[1758170414397,0.06,245.74,245.7,1.62856503]
[1758170414693,0.06,245.74,245.7,2.30856503]
[1758170415579,0.06,245.74,245.71,0.68]
[1758170416200,0.06,245.74,245.7,1.62856503]
[1758170416400,0.06,245.74,245.7,2.30856503]
[1758170417687,0.06,245.74,245.71,0.68]
[1758170418189,0.06,245.74,245.7,1.62856503]
[1758170418492,4.79940571,245.74,245.7,1.62856503]
[1758170418895,4.12940571,245.74,245.7,2.30856503]
[1758170419090,4.12940571,245.74,245.7,1.62856503]
[1758170419286,4.12940571,245.74,245.7,2.30856503]
[1758170422106,0.06,245.74,245.7,1.62856503]
[1758170422290,0.06,245.74,245.71,0.68]
[1758170422797,0.06,245.74,245.7,1.62856503]
[1758170422995,0.06,245.74,245.7,2.30856503]
[1758170423203,0.06,245.74,245.71,0.68]
[1758170423710,0.06,245.74,245.72,0.68]
[1758170424513,0.06,245.74,245.73,0.68]
[1758170426724,0.06,245.74,245.72,1.91268928]
[1758170426926,0.06,245.74,245.72,2.59268928]
[1758170428591,0.06,245.74,245.72,34.07268928]
[1758170428909,0.06,245.74,245.73,0.68]
[1758170429414,0.06,245.74,245.72,33.39268928]
[1758170429610,0.06,245.74,245.73,0.68]
[1758170430003,0.06,245.74,245.73,2.59255671]
[1758170432834,0.06,245.74,245.73,16.18815072]
[1758170435526,0.06,245.74,245.73,47.67815072]
[1758170436117,0.06,245.74,245.73,15.53815072]
[1758170436322,0.06,245.74,245.73,46.99815072]
[1758170439301,0.06,245.74,245.73,47.68815072]
[1758170439628,0.06,245.74,245.73,46.99815072]
[1758170442228,0.06,245.74,245.73,15.53815072]
[1758170442527,0.06,245.74,245.73,46.99815072]
[1758170445827,0.06,245.74,245.73,57.77432314]
[1758170445828,0.76,245.74,245.73,57.77432314]
[1758170446932,0.06,245.74,245.73,57.77432314]
[1758170450419,0.76,245.74,245.73,57.77432314]
[1758170451232,0.06,245.74,245.73,57.77432314]
[1758170451533,0.76,245.74,245.73,57.77432314]
[1758170451733,0.76,245.74,245.73,0.03]
[1758170453726,0.06,245.74,245.73,0.03]
[1758170453923,0.76,245.74,245.73,0.03]
[1758170454432,0.06,245.74,245.73,0.31432314]
[1758170458447,0.06,245.74,245.73,72.03991715]
[1758170462547,0.06,245.74,245.73,73.6679519]
[1758170463132,0.06,245.74,245.73,48.07490261]
[1758170463833,0.06,245.74,245.73,47.6679519]
[1758170464241,0.06,245.77,245.75,13.59559401]
[1758170464425,0.06,245.77,245.76,45.72681819]
[1758170464628,0.06,245.77,245.76,71.72681819]
[1758170464829,0.06,245.77,245.76,72.41681819]
[1758170465142,0.06,245.77,245.76,78.11353211]
[1758170465343,0.06,245.77,245.76,106.05787865]
[1758170465539,0.06,245.77,245.76,105.65097761]
[1758170468145,0.06,245.77,245.76,186.45097761]
[1758170468547,0.06,245.79,245.77,13.87991715]
[1758170468751,0.06,245.79,245.78,45.29991715]
[1758170469056,0.06,245.79,245.78,72.17373318]
[1758170469258,0.06,245.79,245.78,73.80123801]
[1758170469762,0.06,245.79,245.78,77.86991731]
[1758170470545,4.06633095,245.93,245.79,13.87991715]
[1758170470742,0.7,245.87,245.79,14.56991715]
[1758170470945,0.7,245.87,245.79,41.31872775]
[1758170471146,0.7,245.86,245.79,41.31872775]
[1758170471361,0.7,245.86,245.85,39.59559401]
[1758170471550,0.7,245.89,245.86,0.28432314]
[1758170471755,0.7,245.88,245.87,31.70432314]
[1758170472062,0.7,245.88,245.87,35.77065409]
[1758170472554,0.7,245.88,245.87,49.3662481]
[1758170472757,0.7,245.9,245.88,0.28432314]
[1758170472947,0.7,245.9,245.89,31.70432314]
[1758170473145,4.06590643,245.95,245.89,31.70432314]
[1758170473853,0.7,245.94,245.89,31.70432314]
[1758170474054,0.7,245.93,245.9,0.28432314]
[1758170474240,0.7,245.93,245.91,31.42]
[1758170474438,0.7,245.92,245.91,31.70432314]
[1758170474636,0.7,245.92,245.91,31.42]
[1758170474858,0.7,245.92,245.9,31.42]
[1758170475059,0.7,245.91,245.86,38.25404611]
[1758170475259,2.16939335,245.9,245.87,31.42]
[1758170475450,0.7,245.89,245.87,31.42]
[1758170475765,0.7,245.88,245.87,31.42]
[1758170480954,0.7,245.91,245.87,31.70432314]
[1758170481266,0.7,245.9,245.88,0.28432314]
[1758170481462,5.53513287,245.96,245.89,31.4]
[1758170481652,1.46939335,245.95,245.89,31.4]
[1758170481966,2.99563348,245.95,245.9,31.4]
[1758170482263,0.7,245.94,245.9,31.4]